Workbook

Sheet Tabelle1
A6: Beispiel einer Personalberechnung im Rahmen der Ausgabenbasis:
A8: Personalberechnung Herrn Mustermann:
A10: Nettojahresarbeitszeit | C10: 1650 | D10: Std. (max.für eine Ganztagskraft)
A11: Monatliche Nettoarbeitszeit | C11: =ROUND(C10/12,2) -> 137.5 | D11: Std. (1650/12)
A14: Abrechnung Jahr 20XX:
A15: Monat | B15: Gehalt | C15: monatl. Nettoarbeitzeit | D15: monatlicher Std. Satz | E15: geleistete Std. lt. Stundenzettel (Dezimal) | F15: Personalausgaben (max. das gezahlte reguläre Monatsgehalt) | G15: Übertrag ins Virtuelle Konto
A16: Januar | B16: 5000 | C16: =$C$11 -> 137.5 | D16: =ROUND(B16/C16,2) -> 36.36 | E16: 50 | F16: =IF((D16*E16)<=B16,(D16*E16),B16) -> 1818 | G16: =IF(E16<=C16,"",(E16-C16)) -> 
A17: Februar | B17: 5000 | C17: =$C$11 -> 137.5 | D17: =ROUND(B17/C17,2) -> 36.36 | E17: 50.5 | F17: =IF((D17*E17)<=B17,(D17*E17),B17) -> 1836.18 | G17: =IF(E17<=C17,"",(E17-C17)) -> 
A18: März | B18: 5000 | C18: 137.5 | D18: 36.36 | E18: 50.75 | F18: 1845.27
A19: April | B19: 5000 | C19: 137.5 | D19: 36.36 | E19: 60 | F19: 2181.6
A20: Mai | B20: 5000 | C20: 137.5 | D20: 36.36 | E20: 65 | F20: 2363.4
A21: Juni | B21: 5000 | C21: 137.5 | D21: 36.36 | E21: 70.5 | F21: 2563.38
A22: Juli | B22: 5000 | C22: 137.5 | D22: 36.36 | E22: 80.5 | F22: 2926.98
A23: August | B23: 5000 | C23: 137.5 | D23: 36.36 | E23: 99.25 | F23: 3608.73
A24: September | B24: 5000 | C24: 137.5 | D24: 36.36 | E24: 100.75 | F24: 3663.27
A25: Oktober | B25: 5000 | C25: 137.5 | D25: 36.36 | E25: 160 | F25: =IF((D25*E25)<=B25,(D25*E25),B25) -> 5000 | G25: 22.5
A26: November | B26: 5000 | C26: 137.5 | D26: 36.36 | E26: 180 | F26: 5000 | G26: 42.5
A27: Dezember | B27: 5000 | C27: 137.5 | D27: 36.36 | E27: 130 | F27: 4726.8
A28: Gesamt: | C28: =SUM(C16:C27) -> 1650 | D28: =SUM(D16:D27)/12 -> 36.36 | E28: =SUM(E16:E27) -> 1097.25 | F28: =SUM(F16:F27) -> 37533.61 | G28: =SUM(G16:G27) -> 65
A31: Berechnung Jahressonderzahlung (als separate Zeile in der Belegliste aufführen):
A32: Berechnung Weihnachtsgeld: | B32: Gesamtgehalt Nov. | C32: reguläres monatl. Gehalt | D32: Differenz = Weihnachtsgeld | E32: Weihnachtsgeld/1650 | F32: multipliziert mit allen abgerechneten Std. pro Jahr
A33: November | B33: 7000 | C33: 5000 | D33: =B33-C33 -> 2000 | E33: =ROUND(D33/C10,2) -> 1.21 | F33: =(E28*E33) -> 1327.6725
A36: Ausgleich virtuelles Konto (als separate Zeile in der Belegliste aufführen):
A37: Guthaben virtuelles Konto | B37: durchschnittlicher Stundensatz | C37: multipliziert mit den Stunden gemäß virtuellem Konto
A38: =G28 -> 65 | B38: =D28 -> 36.36 | C38: =A38*B38 -> 2363.4

Sheet Tabelle2

Sheet Tabelle3
